[Event "*** Titled Tuesday Blitz"]
[Site "Chess.com"]
[Date "2020.11.10"]
[Round "7"]
[White "Sergey85Rodchenkov"]
[Black "nitpicker"]
[Result "0-1"]
[WhiteElo "2456"]
[BlackElo "2243"]
[TimeControl "180+1"]
[EndTime "11:21:03 PST"]
[Termination "nitpicker won by resignation"]

1. e4 {[%clk 0:03:00.9]} 1... d5 {[%clk 0:02:59.9]} 2. exd5 {[%clk 0:03:00.1]}
2... Qxd5 {[%clk 0:03:00]} 3. Nc3 {[%clk 0:03:00.3]} 3... Qd8 {[%clk 0:02:59.8]}
4. d4 {[%clk 0:02:59.8]} 4... Nf6 {[%clk 0:03:00]} 5. Nf3 {[%clk 0:02:57.3]}
5... Bg4 {[%clk 0:02:58.4]} 6. h3 {[%clk 0:02:55.8]} 6... Bxf3 {[%clk
0:02:57.9]} 7. Qxf3 {[%clk 0:02:55.1]} 7... c6 {[%clk 0:02:58]} 8. Be3 {[%clk
0:02:51.7]} 8... e6 {[%clk 0:02:57.8]} 9. O-O-O {[%clk 0:02:51.6]} 9... Bb4
{[%clk 0:02:47.4]} 10. Ne4 {[%clk 0:02:47.7]} 10... Nbd7 {[%clk 0:02:37.8]} 11.
g4 {[%clk 0:02:46.2]} 11... Nxe4 {[%clk 0:02:34]} 12. Qxe4 {[%clk 0:02:46]}
12... Nf6 {[%clk 0:02:34.4]} 13. Qf3 {[%clk 0:02:44.4]} 13... Qd5 {[%clk
0:02:31.5]} 14. Qxd5 {[%clk 0:02:41]} 14... cxd5 {[%clk 0:02:20.6]} 15. c3
{[%clk 0:02:39.4]} 15... Bd6 {[%clk 0:02:17.8]} 16. Bd3 {[%clk 0:02:39.3]} 16...
O-O {[%clk 0:02:13.7]} 17. f4 {[%clk 0:02:38.9]} 17... Rfe8 {[%clk 0:02:07.1]}
18. Rde1 {[%clk 0:02:38.2]} 18... a6 {[%clk 0:02:06.7]} 19. Rhf1 {[%clk
0:02:36.3]} 19... b5 {[%clk 0:02:04.2]} 20. f5 {[%clk 0:02:33.5]} 20... Nd7
{[%clk 0:02:01.9]} 21. fxe6 {[%clk 0:02:30.9]} 21... fxe6 {[%clk 0:02:01.5]} 22.
Bf4 {[%clk 0:02:25.8]} 22... Bf8 {[%clk 0:01:57.4]} 23. Kd2 {[%clk 0:02:23.8]}
23... Nb6 {[%clk 0:01:56.9]} 24. b3 {[%clk 0:02:23.2]} 24... Rac8 {[%clk
0:01:51.9]} 25. Re3 {[%clk 0:02:13.9]} 25... b4 {[%clk 0:01:46.9]} 26. Bxa6
{[%clk 0:02:07.9]} 26... Ra8 {[%clk 0:01:40.8]} 27. Bb5 {[%clk 0:02:06.2]} 27...
Rxa2+ {[%clk 0:01:40.1]} 28. Kd3 {[%clk 0:01:59.9]} 28... Rc8 {[%clk 0:01:38.8]}
29. c4 {[%clk 0:01:42.1]} 29... Rb2 {[%clk 0:01:26]} 30. c5 {[%clk 0:01:32]}
30... Rxb3+ {[%clk 0:01:22.2]} 31. Kc2 {[%clk 0:01:31.1]} 31... Rxe3 {[%clk
0:01:18.2]} 32. Bxe3 {[%clk 0:01:31]} 32... Nc4 {[%clk 0:01:17.6]} 33. Bf4
{[%clk 0:01:25.5]} 33... Na3+ {[%clk 0:01:09.4]} 34. Kb3 {[%clk 0:01:24.3]}
34... Nxb5 {[%clk 0:01:09.5]} 35. Kxb4 {[%clk 0:01:24.8]} 35... Nxd4 {[%clk
0:01:09.4]} 36. Bd6 {[%clk 0:01:23.1]} 36... Bxd6 {[%clk 0:00:44.2]} 37. cxd6
{[%clk 0:01:22.6]} 37... e5 {[%clk 0:00:40.5]} 38. Re1 {[%clk 0:01:06.3]} 38...
e4 {[%clk 0:00:39.8]} 39. Rd1 {[%clk 0:01:06.2]} 39... e3 {[%clk 0:00:36.4]} 0-1

[Event "*** Titled Tuesday Blitz"]
[Site "Chess.com"]
[Date "2020.11.10"]
[Round "7"]
[White "nelsoncopa"]
[Black "Crazy_girl99"]
[Result "0-1"]
[WhiteElo "1915"]
[BlackElo "2490"]
[TimeControl "180+1"]
[EndTime "11:21:06 PST"]
[Termination "Crazy_girl99 won on time"]

1. d4 {[%clk 0:03:00.9]} 1... d5 {[%clk 0:02:59.9]} 2. c4 {[%clk 0:03:00.2]}
2... dxc4 {[%clk 0:02:59.6]} 3. e4 {[%clk 0:02:59.5]} 3... e5 {[%clk 0:02:56.6]}
4. d5 {[%clk 0:02:58.9]} 4... Nf6 {[%clk 0:02:53.1]} 5. Nc3 {[%clk 0:02:58.1]}
5... c6 {[%clk 0:02:45.1]} 6. Bxc4 {[%clk 0:02:57]} 6... Bb4 {[%clk 0:02:44.7]}
7. f3 {[%clk 0:02:47.1]} 7... O-O {[%clk 0:02:35]} 8. Ne2 {[%clk 0:02:45.5]}
8... b5 {[%clk 0:02:32.8]} 9. Bb3 {[%clk 0:02:44]} 9... a5 {[%clk 0:02:31.9]}
10. a3 {[%clk 0:02:40.8]} 10... Bc5 {[%clk 0:02:26.8]} 11. dxc6 {[%clk
0:02:27.9]} 11... Qb6 {[%clk 0:02:25.2]} 12. Nd5 {[%clk 0:02:26.4]} 12... Qxc6
{[%clk 0:02:12.7]} 13. Nxf6+ {[%clk 0:02:22.7]} 13... Qxf6 {[%clk 0:02:06.7]}
14. Qd5 {[%clk 0:02:20.2]} 14... Qb6 {[%clk 0:02:01.8]} 15. Bg5 {[%clk
0:01:41.7]} 15... Be6 {[%clk 0:01:54.4]} 16. Qd1 {[%clk 0:01:40]} 16... Bxb3
{[%clk 0:01:38.8]} 17. Qxb3 {[%clk 0:01:39.2]} 17... Nc6 {[%clk 0:01:33.7]} 18.
Rc1 {[%clk 0:01:35.2]} 18... h6 {[%clk 0:01:28.8]} 19. Bh4 {[%clk 0:01:34]}
19... Rac8 {[%clk 0:01:24.4]} 20. Rf1 {[%clk 0:01:31.5]} 20... a4 {[%clk
0:01:20.8]} 21. Qd5 {[%clk 0:01:00.1]} 21... Na5 {[%clk 0:01:16.5]} 22. Nc3
{[%clk 0:00:23.5]} 22... Nb3 {[%clk 0:01:03.6]} 23. Rd1 {[%clk 0:00:22.4]} 23...
Bd4 {[%clk 0:01:03.3]} 24. Nxb5 {[%clk 0:00:13.5]} 24... Rc5 {[%clk 0:00:56.8]}
25. Qd6 {[%clk 0:00:03.3]} 25... Qxb5 {[%clk 0:00:54.6]} 0-1

[Event "*** Titled Tuesday Blitz"]
[Site "Chess.com"]
[Date "2020.11.10"]
[Round "7"]
[White "Boudicca64"]
[Black "zala02"]
[Result "0-1"]
[WhiteElo "1836"]
[BlackElo "2144"]
[TimeControl "180+1"]
[EndTime "11:21:08 PST"]
[Termination "zala02 won by resignation"]

1. e4 {[%clk 0:03:00.9]} 1... e5 {[%clk 0:02:59.3]} 2. d4 {[%clk 0:02:57.5]}
2... exd4 {[%clk 0:02:58.4]} 3. Qxd4 {[%clk 0:02:55.7]} 3... Nc6 {[%clk
0:02:58.1]} 4. Qe3 {[%clk 0:02:53.4]} 4... d6 {[%clk 0:02:44.5]} 5. b3 {[%clk
0:02:51.5]} 5... Be7 {[%clk 0:02:42.7]} 6. Bb2 {[%clk 0:02:50.8]} 6... Bf6
{[%clk 0:02:42.7]} 7. Nc3 {[%clk 0:02:49.7]} 7... Nge7 {[%clk 0:02:40.1]} 8.
O-O-O {[%clk 0:02:47.3]} 8... Be6 {[%clk 0:02:39.5]} 9. f3 {[%clk 0:02:33.8]}
9... Qd7 {[%clk 0:02:35.3]} 10. g4 {[%clk 0:02:20.9]} 10... O-O-O {[%clk
0:02:30.8]} 11. g5 {[%clk 0:02:19.6]} 11... Bxc3 {[%clk 0:02:29.8]} 12. Qxc3
{[%clk 0:02:15.3]} 12... Rhg8 {[%clk 0:02:13.1]} 13. f4 {[%clk 0:02:14.2]} 13...
Bg4 {[%clk 0:02:09.6]} 14. Be2 {[%clk 0:02:13.2]} 14... Bxe2 {[%clk 0:02:09.1]}
15. Nxe2 {[%clk 0:02:12.2]} 15... h6 {[%clk 0:02:05.6]} 16. h4 {[%clk
0:02:10.8]} 16... Kb8 {[%clk 0:02:00.2]} 17. Qc4 {[%clk 0:02:05.3]} 17... Rdf8
{[%clk 0:01:54.4]} 18. Rhg1 {[%clk 0:02:03.1]} 18... Qh3 {[%clk 0:01:46.8]} 19.
gxh6 {[%clk 0:01:59.8]} 19... gxh6 {[%clk 0:01:47.7]} 20. Rxg8 {[%clk
0:01:58.5]} 20... Rxg8 {[%clk 0:01:47.9]} 21. Qxf7 {[%clk 0:01:58.4]} 21... Qe3+
{[%clk 0:01:35.8]} 22. Rd2 {[%clk 0:01:47.7]} 22... Qxe4 {[%clk 0:01:34.8]} 23.
Bf6 {[%clk 0:01:26]} 23... a6 {[%clk 0:01:28.5]} 24. Nd4 {[%clk 0:01:17.8]}
24... Rg1+ {[%clk 0:01:21.2]} 25. Kb2 {[%clk 0:01:14.5]} 25... Qe1 {[%clk
0:01:16.7]} 26. Re2 {[%clk 0:00:47.5]} 26... Qc1+ {[%clk 0:01:04]} 27. Kc3
{[%clk 0:00:46.2]} 27... Rg3+ {[%clk 0:01:03.3]} 28. Kc4 {[%clk 0:00:39.7]}
28... d5+ {[%clk 0:00:46.4]} 0-1

[Event "*** Titled Tuesday Blitz"]
[Site "Chess.com"]
[Date "2020.11.10"]
[Round "7"]
[White "Ave_Mariia"]
[Black "Algeriano22"]
[Result "0-1"]
[WhiteElo "2525"]
[BlackElo "2702"]
[TimeControl "180+1"]
[EndTime "11:21:09 PST"]
[Termination "Algeriano22 won by resignation"]

1. d4 {[%clk 0:03:00.9]} 1... Nf6 {[%clk 0:02:59.5]} 2. c4 {[%clk 0:03:00.8]}
2... d6 {[%clk 0:02:59.6]} 3. Nf3 {[%clk 0:02:58.8]} 3... g6 {[%clk 0:02:59.8]}
4. Bf4 {[%clk 0:02:52.4]} 4... Bg7 {[%clk 0:02:59.6]} 5. Nc3 {[%clk 0:02:52.3]}
5... O-O {[%clk 0:02:59.4]} 6. e3 {[%clk 0:02:52.6]} 6... c5 {[%clk 0:02:59.6]}
7. h3 {[%clk 0:02:50.5]} 7... Qb6 {[%clk 0:02:57.4]} 8. Qd2 {[%clk 0:02:46.5]}
8... Bf5 {[%clk 0:02:55.6]} 9. Be2 {[%clk 0:02:43.7]} 9... Ne4 {[%clk
0:02:54.8]} 10. Nxe4 {[%clk 0:02:43.4]} 10... Bxe4 {[%clk 0:02:55.3]} 11. Rd1
{[%clk 0:02:40.8]} 11... Nc6 {[%clk 0:02:41.4]} 12. O-O {[%clk 0:02:26.2]} 12...
Bxf3 {[%clk 0:02:12.7]} 13. dxc5 {[%clk 0:02:23.2]} 13... Qxc5 {[%clk
0:02:01.6]} 14. Bxf3 {[%clk 0:02:21]} 14... Qxc4 {[%clk 0:02:01.7]} 15. Rc1
{[%clk 0:02:06.7]} 15... Qxa2 {[%clk 0:01:59]} 16. Bxc6 {[%clk 0:01:34.5]} 16...
bxc6 {[%clk 0:01:57.6]} 17. Rxc6 {[%clk 0:01:35.2]} 17... Qxb2 {[%clk
0:01:55.1]} 18. Qa5 {[%clk 0:01:35.4]} 18... Bf6 {[%clk 0:01:14.4]} 19. Rfc1
{[%clk 0:01:28.4]} 19... a6 {[%clk 0:01:00.3]} 20. R1c2 {[%clk 0:01:13.3]} 20...
Qb5 {[%clk 0:00:51.9]} 21. Qc7 {[%clk 0:00:45]} 21... a5 {[%clk 0:00:44.1]} 22.
Rb6 {[%clk 0:00:45.2]} 22... Qd5 {[%clk 0:00:41.9]} 23. Bh6 {[%clk 0:00:42.1]}
23... Rfe8 {[%clk 0:00:40.6]} 24. Rb7 {[%clk 0:00:27.8]} 24... a4 {[%clk
0:00:37.2]} 25. Ra7 {[%clk 0:00:28.1]} 25... Rxa7 {[%clk 0:00:29.7]} 0-1

[Event "*** Titled Tuesday Blitz"]
[Site "Chess.com"]
[Date "2020.11.10"]
[Round "7"]
[White "Margency"]
[Black "NateSolon"]
[Result "1-0"]
[WhiteElo "2695"]
[BlackElo "2476"]
[TimeControl "180+1"]
[EndTime "11:21:09 PST"]
[Termination "Margency won by resignation"]

1. e4 {[%clk 0:03:00.9]} 1... c5 {[%clk 0:03:00]} 2. Nf3 {[%clk 0:03:00.6]} 2...
Nc6 {[%clk 0:03:00.1]} 3. d4 {[%clk 0:03:00.8]} 3... cxd4 {[%clk 0:03:01]} 4.
Nxd4 {[%clk 0:03:01.4]} 4... Nf6 {[%clk 0:03:01.6]} 5. Nc3 {[%clk 0:03:01.7]}
5... h5 {[%clk 0:03:01.9]} 6. Bc4 {[%clk 0:02:55.5]} 6... e6 {[%clk 0:03:00.9]}
7. Bb3 {[%clk 0:02:52.8]} 7... Bb4 {[%clk 0:02:55]} 8. Nxc6 {[%clk 0:02:45.3]}
8... bxc6 {[%clk 0:02:54]} 9. e5 {[%clk 0:02:37.4]} 9... Nd5 {[%clk 0:02:48.2]}
10. Bd2 {[%clk 0:02:36.5]} 10... Qc7 {[%clk 0:02:08.1]} 11. Qe2 {[%clk 0:02:30]}
11... a5 {[%clk 0:02:04.7]} 12. a3 {[%clk 0:02:21.8]} 12... Ba6 {[%clk
0:01:58.6]} 13. Qe4 {[%clk 0:02:17.8]} 13... Be7 {[%clk 0:01:44.4]} 14. h4
{[%clk 0:02:06]} 14... f5 {[%clk 0:00:56.4]} 15. exf6 {[%clk 0:02:04.7]} 15...
gxf6 {[%clk 0:00:46.2]} 16. O-O-O {[%clk 0:01:48.7]} 16... O-O-O {[%clk
0:00:41.5]} 17. Rh3 {[%clk 0:01:14.1]} 17... Rhg8 {[%clk 0:00:39.1]} 18. Nxd5
{[%clk 0:01:10.1]} 18... cxd5 {[%clk 0:00:36.9]} 19. Qa4 {[%clk 0:01:04.1]}
19... Rg4 {[%clk 0:00:34.4]} 20. f4 {[%clk 0:00:58.5]} 20... Rxg2 {[%clk
0:00:15.3]} 21. Bxa5 {[%clk 0:00:48.1]} 21... Qc6 {[%clk 0:00:09.6]} 22. Rc3
{[%clk 0:00:45.8]} 22... Bc4 {[%clk 0:00:09.6]} 23. Qxc6+ {[%clk 0:00:42.4]}
23... dxc6 {[%clk 0:00:09.6]} 24. Bxc4 {[%clk 0:00:39.3]} 1-0

[Event "*** Titled Tuesday Blitz"]
[Site "Chess.com"]
[Date "2020.11.10"]
[Round "7"]
[White "B-man"]
[Black "MasterKroket"]
[Result "1-0"]
[WhiteElo "2562"]
[BlackElo "2428"]
[TimeControl "180+1"]
[EndTime "11:21:12 PST"]
[Termination "B-man won by resignation"]

1. b3 {[%clk 0:03:00.9]} 1... e5 {[%clk 0:03:00]} 2. Bb2 {[%clk 0:03:00.9]} 2...
Nc6 {[%clk 0:02:59.8]} 3. e3 {[%clk 0:03:00.9]} 3... Nf6 {[%clk 0:02:59.8]} 4.
Bb5 {[%clk 0:03:00.8]} 4... d6 {[%clk 0:02:59.6]} 5. Bxc6+ {[%clk 0:02:57]} 5...
bxc6 {[%clk 0:02:58.3]} 6. Ne2 {[%clk 0:02:54.2]} 6... c5 {[%clk 0:02:57.7]} 7.
O-O {[%clk 0:02:53.7]} 7... Bb7 {[%clk 0:02:58]} 8. f4 {[%clk 0:02:53.9]} 8...
exf4 {[%clk 0:02:56.6]} 9. Nxf4 {[%clk 0:02:54.8]} 9... Be7 {[%clk 0:02:53.7]}
10. Nc3 {[%clk 0:02:45.4]} 10... O-O {[%clk 0:02:53.3]} 11. d3 {[%clk
0:02:27.4]} 11... Qd7 {[%clk 0:02:32.6]} 12. e4 {[%clk 0:02:14]} 12... Qg4
{[%clk 0:02:30.5]} 13. Qd2 {[%clk 0:01:57.1]} 13... Qh4 {[%clk 0:02:28.5]} 14.
Rf3 {[%clk 0:01:42.7]} 14... Bc8 {[%clk 0:02:27.1]} 15. Raf1 {[%clk 0:01:37.7]}
15... Bg4 {[%clk 0:02:23.8]} 16. Rg3 {[%clk 0:01:34.4]} 16... c6 {[%clk
0:02:11.5]} 17. Nd1 {[%clk 0:01:22]} 17... Kh8 {[%clk 0:01:56.7]} 18. Ne3 {[%clk
0:01:14.1]} 18... Bd7 {[%clk 0:01:56]} 19. Nf5 {[%clk 0:00:57.2]} 19... Bxf5
{[%clk 0:01:53.5]} 20. exf5 {[%clk 0:00:58.1]} 20... Rg8 {[%clk 0:01:45.1]} 21.
Rh3 {[%clk 0:00:51.8]} 21... Qg4 {[%clk 0:01:41.5]} 22. Rg3 {[%clk 0:00:46.2]}
22... Qxf5 {[%clk 0:01:30.7]} 23. Ng6+ {[%clk 0:00:43.6]} 23... Qxg6 {[%clk
0:01:30.8]} 24. Rxg6 {[%clk 0:00:43]} 24... hxg6 {[%clk 0:01:31.4]} 25. Qe3
{[%clk 0:00:31.5]} 25... Rge8 {[%clk 0:01:29.5]} 26. Qf3 {[%clk 0:00:26]} 26...
Rac8 {[%clk 0:01:26.1]} 27. Re1 {[%clk 0:00:23.6]} 27... Kg8 {[%clk 0:01:25.2]}
28. a4 {[%clk 0:00:20.1]} 28... d5 {[%clk 0:01:24.4]} 29. Qh3 {[%clk 0:00:17.6]}
29... c4 {[%clk 0:01:15.9]} 30. Rxe7 {[%clk 0:00:15.6]} 30... Rxe7 {[%clk
0:01:08.1]} 31. Qxc8+ {[%clk 0:00:13.6]} 31... Re8 {[%clk 0:01:08.3]} 32. Qxc6
{[%clk 0:00:13.6]} 32... Re2 {[%clk 0:01:06.9]} 33. Bxf6 {[%clk 0:00:12.5]}
33... cxd3 {[%clk 0:01:01.1]} 34. cxd3 {[%clk 0:00:12.6]} 34... gxf6 {[%clk
0:01:00.8]} 1-0

[Event "*** Titled Tuesday Blitz"]
[Site "Chess.com"]
[Date "2020.11.10"]
[Round "7"]
[White "JozefKneht"]
[Black "Vamostodorecto"]
[Result "1/2-1/2"]
[WhiteElo "2506"]
[BlackElo "2374"]
[TimeControl "180+1"]
[EndTime "11:21:13 PST"]
[Termination "Game drawn by repetition"]

1. Nf3 {[%clk 0:03:00.9]} 1... d5 {[%clk 0:02:58.9]} 2. c4 {[%clk 0:02:59.9]}
2... Nf6 {[%clk 0:02:57.5]} 3. cxd5 {[%clk 0:02:58.9]} 3... Nxd5 {[%clk
0:02:58.4]} 4. Nc3 {[%clk 0:02:58.9]} 4... g6 {[%clk 0:02:57.7]} 5. g3 {[%clk
0:02:57.8]} 5... Bg7 {[%clk 0:02:57.1]} 6. Bg2 {[%clk 0:02:58.4]} 6... O-O
{[%clk 0:02:57.2]} 7. O-O {[%clk 0:02:57.3]} 7... Nb6 {[%clk 0:02:57.2]} 8. d3
{[%clk 0:02:53.3]} 8... Nc6 {[%clk 0:02:57.7]} 9. Be3 {[%clk 0:02:49.1]} 9... e5
{[%clk 0:02:57.9]} 10. Rc1 {[%clk 0:02:47.9]} 10... Kh8 {[%clk 0:02:57.2]} 11.
a3 {[%clk 0:02:45.2]} 11... f5 {[%clk 0:02:52.7]} 12. b4 {[%clk 0:02:41.5]}
12... f4 {[%clk 0:02:49.9]} 13. Bc5 {[%clk 0:02:40.2]} 13... Rg8 {[%clk
0:02:44.5]} 14. b5 {[%clk 0:02:35.1]} 14... Ne7 {[%clk 0:02:18.5]} 15. a4 {[%clk
0:02:33.2]} 15... Nf5 {[%clk 0:02:05.3]} 16. a5 {[%clk 0:02:19.8]} 16... Nd7
{[%clk 0:02:05.3]} 17. Bb4 {[%clk 0:02:19.5]} 17... g5 {[%clk 0:02:02.9]} 18.
Nd5 {[%clk 0:02:07.9]} 18... c6 {[%clk 0:01:49.5]} 19. bxc6 {[%clk 0:01:52.7]}
19... bxc6 {[%clk 0:01:50.4]} 20. Nc3 {[%clk 0:01:47.5]} 20... Rb8 {[%clk
0:01:46.2]} 21. Qa4 {[%clk 0:01:43.5]} 21... c5 {[%clk 0:01:42.4]} 22. Ba3
{[%clk 0:01:42.7]} 22... Bb7 {[%clk 0:01:36.3]} 23. Nxg5 {[%clk 0:01:16.5]}
23... Qxg5 {[%clk 0:01:37.2]} 24. Qxd7 {[%clk 0:01:15.6]} 24... Bxg2 {[%clk
0:01:36.8]} 25. Kxg2 {[%clk 0:01:15.7]} 25... fxg3 {[%clk 0:01:33.4]} 26. hxg3
{[%clk 0:01:14.7]} 26... Rb3 {[%clk 0:00:56.3]} 27. Bxc5 {[%clk 0:01:10.4]}
27... Rxc3 {[%clk 0:00:53.9]} 28. Rxc3 {[%clk 0:01:08.9]} 28... e4 {[%clk
0:00:54.8]} 29. dxe4 {[%clk 0:00:56.4]} 29... Nh4+ {[%clk 0:00:51.7]} 30. Kh2
{[%clk 0:00:56.6]} 30... Bxc3 {[%clk 0:00:51.7]} 31. Bd4+ {[%clk 0:00:57.1]}
31... Bxd4 {[%clk 0:00:47.5]} 32. Qxd4+ {[%clk 0:00:57.6]} 32... Rg7 {[%clk
0:00:47.8]} 33. Rc1 {[%clk 0:00:56.3]} 33... Qxc1 {[%clk 0:00:26.2]} 34. Qd8+
{[%clk 0:00:54.9]} 34... Rg8 {[%clk 0:00:26.3]} 35. Qf6+ {[%clk 0:00:54.6]}
35... Rg7 {[%clk 0:00:26.7]} 36. Qf8+ {[%clk 0:00:54.6]} 36... Rg8 {[%clk
0:00:27]} 37. Qf6+ {[%clk 0:00:55.2]} 37... Rg7 {[%clk 0:00:27.2]} 38. Qf8+
{[%clk 0:00:55.2]} 38... Rg8 {[%clk 0:00:27]} 39. Qf6+ {[%clk 0:00:55.1]}
1/2-1/2

[Event "*** Titled Tuesday Blitz"]
[Site "Chess.com"]
[Date "2020.11.10"]
[Round "7"]
[White "JoachimMouhamad"]
[Black "ajedrezhoy"]
[Result "1-0"]
[WhiteElo "2351"]
[BlackElo "2220"]
[TimeControl "180+1"]
[EndTime "11:21:16 PST"]
[Termination "JoachimMouhamad won by checkmate"]

1. e4 {[%clk 0:03:00.8]} 1... Nf6 {[%clk 0:02:59.1]} 2. e5 {[%clk 0:02:59.8]}
2... Nd5 {[%clk 0:02:59.1]} 3. d4 {[%clk 0:02:59.7]} 3... d6 {[%clk 0:02:59.2]}
4. Nf3 {[%clk 0:02:59.7]} 4... dxe5 {[%clk 0:02:58.8]} 5. Nxe5 {[%clk
0:02:58.6]} 5... g6 {[%clk 0:02:58.8]} 6. Bc4 {[%clk 0:02:55.1]} 6... c6 {[%clk
0:02:58.9]} 7. O-O {[%clk 0:02:54.4]} 7... Bg7 {[%clk 0:02:59]} 8. Nd2 {[%clk
0:02:40.9]} 8... O-O {[%clk 0:02:57.8]} 9. Ndf3 {[%clk 0:02:40.6]} 9... Nd7
{[%clk 0:02:53.1]} 10. Nxd7 {[%clk 0:02:29.9]} 10... Bxd7 {[%clk 0:02:51.7]} 11.
h3 {[%clk 0:02:27.3]} 11... Bf5 {[%clk 0:02:48.7]} 12. Bb3 {[%clk 0:02:25.2]}
12... a5 {[%clk 0:02:47.4]} 13. c3 {[%clk 0:02:16.2]} 13... a4 {[%clk
0:02:46.1]} 14. Bc2 {[%clk 0:02:14.9]} 14... a3 {[%clk 0:02:32.3]} 15. Bxf5
{[%clk 0:02:12.5]} 15... axb2 {[%clk 0:02:30.5]} 16. Bxb2 {[%clk 0:02:10.8]}
16... gxf5 {[%clk 0:02:30.3]} 17. Re1 {[%clk 0:02:05.3]} 17... e6 {[%clk
0:02:30.1]} 18. a4 {[%clk 0:01:59.9]} 18... Nb6 {[%clk 0:02:22.3]} 19. Ba3
{[%clk 0:01:49.9]} 19... Re8 {[%clk 0:02:19.9]} 20. Bc5 {[%clk 0:01:48.4]} 20...
Nc4 {[%clk 0:02:14]} 21. Qb3 {[%clk 0:01:47.1]} 21... Na5 {[%clk 0:02:07.1]} 22.
Qc2 {[%clk 0:01:40.1]} 22... Qd5 {[%clk 0:02:04.8]} 23. Rab1 {[%clk 0:01:30.5]}
23... Reb8 {[%clk 0:01:46.6]} 24. Qd2 {[%clk 0:01:24.4]} 24... Nc4 {[%clk
0:01:31.8]} 25. Qg5 {[%clk 0:01:23.6]} 25... h6 {[%clk 0:01:31.6]} 26. Qh4
{[%clk 0:01:10.2]} 26... Rxa4 {[%clk 0:01:27.7]} 27. Be7 {[%clk 0:01:10.1]}
27... b5 {[%clk 0:01:15.7]} 28. Bf6 {[%clk 0:01:10.2]} 28... Kf8 {[%clk
0:00:39.3]} 29. Bxg7+ {[%clk 0:01:07.4]} 29... Kxg7 {[%clk 0:00:38.5]} 30. Qg3+
{[%clk 0:01:03.1]} 30... Kh7 {[%clk 0:00:38]} 31. Qxb8 {[%clk 0:01:02.6]} 31...
Ra2 {[%clk 0:00:32.9]} 32. Qf8 {[%clk 0:00:55.3]} 32... Qd7 {[%clk 0:00:29.9]}
33. Ra1 {[%clk 0:00:47.3]} 33... Rc2 {[%clk 0:00:27.7]} 34. Ra8 {[%clk
0:00:44.5]} 34... Rxc3 {[%clk 0:00:24.1]} 35. Qg8# {[%clk 0:00:44.6]} 1-0

[Event "*** Titled Tuesday Blitz"]
[Site "Chess.com"]
[Date "2020.11.10"]
[Round "7"]
[White "Semen_Khanin"]
[Black "SantoBlue"]
[Result "0-1"]
[WhiteElo "2785"]
[BlackElo "2921"]
[TimeControl "180+1"]
[EndTime "11:21:19 PST"]
[Termination "SantoBlue won by resignation"]

1. e4 {[%clk 0:03:00.9]} 1... c5 {[%clk 0:02:56.5]} 2. Nf3 {[%clk 0:03:00.9]}
2... Nc6 {[%clk 0:02:56.6]} 3. d4 {[%clk 0:03:01.2]} 3... cxd4 {[%clk
0:02:55.8]} 4. Nxd4 {[%clk 0:03:02.1]} 4... Nf6 {[%clk 0:02:56.1]} 5. Nc3 {[%clk
0:03:02.4]} 5... d6 {[%clk 0:02:55.9]} 6. Bg5 {[%clk 0:03:02]} 6... e6 {[%clk
0:02:56]} 7. Qd2 {[%clk 0:03:02]} 7... a6 {[%clk 0:02:55.7]} 8. O-O-O {[%clk
0:03:01.8]} 8... h6 {[%clk 0:02:47.8]} 9. Bh4 {[%clk 0:02:53.3]} 9... Nxe4
{[%clk 0:02:41.8]} 10. Nxe4 {[%clk 0:02:47.6]} 10... Qxh4 {[%clk 0:02:40.8]} 11.
Nxc6 {[%clk 0:02:21.2]} 11... Qxe4 {[%clk 0:02:37.8]} 12. Nd4 {[%clk 0:02:21.4]}
12... Be7 {[%clk 0:02:32.5]} 13. Bd3 {[%clk 0:02:19.9]} 13... Qxg2 {[%clk
0:02:24.4]} 14. Kb1 {[%clk 0:02:17.4]} 14... Qd5 {[%clk 0:02:19.6]} 15. Qe3
{[%clk 0:02:05.9]} 15... Qe5 {[%clk 0:02:17]} 16. Qf3 {[%clk 0:01:50.1]} 16...
Qf6 {[%clk 0:02:17]} 17. Qg3 {[%clk 0:01:34.4]} 17... e5 {[%clk 0:02:08.7]} 18.
Ne2 {[%clk 0:01:25.1]} 18... Be6 {[%clk 0:02:03.8]} 19. Nc3 {[%clk 0:01:25]}
19... d5 {[%clk 0:02:02.8]} 20. f4 {[%clk 0:01:13.8]} 20... e4 {[%clk
0:02:00.3]} 21. Be2 {[%clk 0:01:07.3]} 21... Rd8 {[%clk 0:01:57.5]} 22. f5
{[%clk 0:01:01.3]} 22... Qxf5 {[%clk 0:01:50.3]} 23. Qxg7 {[%clk 0:01:01.4]}
23... Bf6 {[%clk 0:01:49.8]} 24. Qg3 {[%clk 0:01:01.4]} 24... Be5 {[%clk
0:01:49.7]} 25. Qh4 {[%clk 0:00:57.3]} 25... Bxc3 {[%clk 0:01:48.5]} 26. bxc3
{[%clk 0:00:57.2]} 26... Qe5 {[%clk 0:01:48.9]} 27. Rd4 {[%clk 0:00:55.6]} 27...
Rc8 {[%clk 0:01:46.6]} 28. Kb2 {[%clk 0:00:53]} 28... Qc7 {[%clk 0:01:42.2]} 29.
Qe1 {[%clk 0:00:30.9]} 29... Rg8 {[%clk 0:01:36.6]} 30. h3 {[%clk 0:00:18.8]}
30... Rg2 {[%clk 0:01:34]} 31. Bg4 {[%clk 0:00:19]} 31... Rg3 {[%clk 0:01:25]}
32. c4 {[%clk 0:00:09.5]} 32... Qb6+ {[%clk 0:01:24.2]} 33. Kc1 {[%clk
0:00:04.4]} 33... Qxd4 {[%clk 0:01:24.2]} 34. Qxg3 {[%clk 0:00:04.5]} 34... Qa1+
{[%clk 0:01:24.5]} 35. Kd2 {[%clk 0:00:04.9]} 35... Qxh1 {[%clk 0:01:24.6]} 36.
Bxe6 {[%clk 0:00:05.6]} 36... fxe6 {[%clk 0:01:22.8]} 37. Qd6 {[%clk 0:00:01.5]}
37... Qg2+ {[%clk 0:01:21.4]} 38. Ke3 {[%clk 0:00:02.4]} 38... Qg5+ {[%clk
0:01:20.3]} 39. Kd4 {[%clk 0:00:02.7]} 39... Qd2+ {[%clk 0:01:18.4]} 40. Ke5
{[%clk 0:00:02.9]} 40... Qh2+ {[%clk 0:01:19.3]} 0-1